[Event "Polish University-ch Teams 2024"]
[Site "Lublin"]
[Date "2024.02.25"]
[Round "8.13"]
[White "Dzida, Kamil"]
[Black "Snihur, Piotr"]
[Result "1-0"]
[ECO "C45"]
[WhiteElo "2403"]
[BlackElo "2278"]
[Annotator "ChessBase"]
[PlyCount "47"]
[EventDate "2024.02.22"]
[EventType "team-tourn"]
[EventCountry "POL"]
[SourceTitle "playchess.com"]
[Source "ChessBase"]
[SourceQuality "1"]
[TimeControl "900+5"]

1. e4 {[%emt 0:00:01]} e5 {[%emt 0:00:11]} 2. Nf3 {[%emt 0:00:04]} Nc6 {[%emt 0:00:01]} 3. d4 {[%emt 0:00:01]} exd4 {[%emt 0:00:21]} 4. Nxd4 {[%emt 0:00:01]} Nf6 {[%emt 0:00:12]} 5. Nxc6 {[%emt 0:00:02]} bxc6 {[%emt 0:00:04]} 6. e5 {[%emt 0:00:02]} Qe7 {[%emt 0:00:12]} 7. Qe2 {[%emt 0:00:01]} Nd5 {[%emt 0:00:03]} 8. h4 {[%emt 0:00:02]} g6 {[%emt 0:01:42]} 9. c4 {[%emt 0:00:05]} Nb6 {[%emt 0:00:01]} 10. Bg5 {[%emt 0:00:11]} Qb4+ {[%emt 0:01:45]} 11. Qd2 {[%emt 0:00:42]} Nxc4 {[%emt 0:01:47]} 12. Bxc4 {[%emt 0:00:05]} Qxc4 {[%emt 0:00:01]} 13. Nc3 {[%emt 0:00:20]} Be7 {[%emt 0:01:32]} 14. Bxe7 {[%emt 0:00:38]} Kxe7 {[%emt 0:00:01]} 15. O-O-O {[%emt 0:00:02]} Rb8 {[%emt 0:01:33]} 16. h5 {[%emt 0:00:16]} Rg8 {[%emt 0:00:18]} 17. hxg6 {[%emt 0:00:23]} Rxg6 {[%emt 0:00:24]} 18. Rxh7 {[%emt 0:00:21]} Rxg2 {[%emt 0:00:42]} 19. e6 {[%emt 0:00:42]} Kxe6 {[%emt 0:00:51]} 20. Qe3+ {[%emt 0:01:23]} Kf5 {[%emt 0:00:38]} 21. Rh5+ {[%emt 0:00:10]} Kg4 {[%emt 0:00:32]} 22. Qg5+ {[%emt 0:00:46]} Kf3 {[%emt 0:00:03]} 23. Rh3+ {[%emt 0:00:02]} Kxf2 {[%emt 0:00:06]} 24. Rd2+ {[%emt 0:00:03]} 1-0

[Event "Polish University-ch Teams 2024"]
[Site "Lublin"]
[Date "2024.02.25"]
[Round "8.14"]
[White "Sliwicka, Alicja"]
[Black "Klepek, Witold"]
[Result "0-1"]
[ECO "C02"]
[WhiteElo "2309"]
[BlackElo "2262"]
[Annotator "ChessBase"]
[PlyCount "105"]
[EventDate "2024.02.22"]
[EventType "team-tourn"]
[EventCountry "POL"]
[SourceTitle "playchess.com"]
[Source "ChessBase"]
[SourceQuality "1"]
[TimeControl "900+5"]

1. e4 {[%emt 0:00:01]} e6 {[%emt 0:00:01]} 2. d4 {[%emt 0:00:01]} d5 {[%emt 0:00:01]} 3. e5 {[%emt 0:00:01]} c5 {[%emt 0:00:03]} 4. c3 {[%emt 0:00:02]} Nc6 {[%emt 0:00:02]} 5. Nf3 {[%emt 0:00:01]} Bd7 {[%emt 0:00:01]} 6. Bd3 {[%emt 0:00:05]} cxd4 {[%emt 0:00:08]} 7. O-O {[%emt 0:00:05]} Qb6 {[%emt 0:00:22]} 8. Re1 {[%emt 0:00:04]} Nge7 {[%emt 0:00:35]} 9. h4 {[%emt 0:00:02]} Rc8 {[%emt 0:00:30]} 10. h5 {[%emt 0:00:11]} h6 {[%emt 0:00:27]} 11. Nbd2 {[%emt 0:00:02]} g5 {[%emt 0:00:36]} 12. hxg6 {[%emt 0:15:30]} Nxg6 {[%emt 0:00:51]} 13. Nb3 {[%emt 0:00:00]} dxc3 {[%emt 0:01:20]} 14. bxc3 {[%emt 0:00:00]} Bg7 {[%emt 0:00:57]} 15. Bxg6 {[%emt 0:00:00]} fxg6 {[%emt 0:00:02]} 16. Qd3 {[%emt 0:00:00]} Ne7 {[%emt 0:00:19]} 17. Nbd4 {[%emt 0:00:00]} Qa6 {[%emt 0:00:51]} 18. Qc2 {[%emt 0:00:00]} O-O {[%emt 0:00:12]} 19. a4 {[%emt 0:00:00]} Rf7 {[%emt 0:00:46]} 20. Be3 {[%emt 0:00:00]} Qc4 {[%emt 0:01:50]} 21. Reb1 {[%emt 0:00:00]} b6 {[%emt 0:00:10]} 22. Ra3 {[%emt 0:00:00]} Nf5 {[%emt 0:00:33]} 23. Nxf5 {[%emt 0:00:00]} gxf5 {[%emt 0:00:01]} 24. Bd4 {[%emt 0:00:00]} Bf8 {[%emt 0:00:12]} 25. Raa1 {[%emt 0:00:00]} Rg7 {[%emt 0:00:53]} 26. Qd2 {[%emt 0:00:00]} Kh7 {[%emt 0:00:07]} 27. g3 {[%emt 0:00:00]} Bc5 {[%emt 0:02:52]} 28. Kg2 {[%emt 0:00:00]} Bxd4 {[%emt 0:00:01]} 29. cxd4 {[%emt 0:00:00]} Qc2 {[%emt 0:00:09]} 30. a5 {[%emt 0:00:00]} Qxd2 {[%emt 0:00:06]} 31. Nxd2 {[%emt 0:00:00]} Rc2 {[%emt 0:00:06]} 32. Nf1 {[%emt 0:00:00]} b5 {[%emt 0:00:11]} 33. Rc1 {[%emt 0:00:11]} Rc4 {[%emt 0:00:11]} 34. Rd1 {[%emt 0:00:44]} f4 {[%emt 0:00:16]} 35. Kf3 {[%emt 0:00:28]} fxg3 {[%emt 0:00:04]} 36. fxg3 {[%emt 0:00:03]} Be8 {[%emt 0:00:05]} 37. g4 {[%emt 0:00:21]} Bg6 {[%emt 0:00:07]} 38. Ne3 {[%emt 0:00:08]} Be4+ {[%emt 0:00:01]} 39. Ke2 {[%emt 0:00:06]} Rc3 {[%emt 0:00:09]} 40. a6 {[%emt 0:00:07]} Rf7 {[%emt 0:00:10]} 41. Rdc1 {[%emt 0:00:04]} Rb3 {[%emt 0:00:15]} 42. Rc6 {[%emt 0:00:09]} Rb2+ {[%emt 0:00:06]} 43. Ke1 {[%emt 0:00:02]} Bd3 {[%emt 0:00:07]} 44. Ra3 {[%emt 0:00:08]} Re2+ {[%emt 0:00:02]} 45. Kd1 {[%emt 0:00:01]} Rxe3 {[%emt 0:00:03]} 46. Kd2 {[%emt 0:00:01]} Rff3 {[%emt 0:00:27]} 47. Rc7+ {[%emt 0:00:07]} Kg6 {[%emt 0:00:01]} 48. Rxa7 {[%emt 0:00:03]} Re2+ {[%emt 0:00:01]} 49. Kc3 {[%emt 0:00:01]} Bc4+ {[%emt 0:00:08]} 50. Kb4 {[%emt 0:00:01]} Rb2+ {[%emt 0:00:01]} 51. Kc5 {[%emt 0:00:05]} Rxa3 {[%emt 0:00:01]} 52. Kb6 {[%emt 0:00:07]} b4 {[%emt 0:00:03]} 53. Kc5 {[%emt 0:00:28]} 0-1

[Event "Polish University-ch Teams 2024"]
[Site "Lublin"]
[Date "2024.02.25"]
[Round "8.15"]
[White "Golenia, Jan"]
[Black "Brzezinski, Mateusz"]
[Result "1-0"]
[ECO "E05"]
[WhiteElo "2221"]
[BlackElo "2176"]
[Annotator "RC"]
[PlyCount "73"]
[EventDate "2024.02.22"]
[EventType "team-tourn"]
[EventCountry "POL"]
[SourceTitle "playchess.com"]
[Source "ChessBase"]
[SourceQuality "1"]
[TimeControl "900+5"]

1. d4 {[%emt 0:00:03]} Nf6 {[%emt 0:00:17]} 2. c4 {[%emt 0:00:01]} e6 {[%emt 0:00:16]} 3. Nf3 {[%emt 0:00:03]} d5 {[%emt 0:00:01]} 4. g3 {[%emt 0:00:01]} Be7 {[%emt 0:00:02]} 5. Bg2 {[%emt 0:00:01]} O-O {[%emt 0:00:04]} 6. O-O {[%emt 0:00:03]} dxc4 {[%emt 0:00:04]} 7. Qc2 {[%emt 0:00:56]} a6 {[%emt 0:00:01]} 8. a4 {[%emt 0:00:02]} b6 {[%emt 0:02:07]} 9. Qxc4 {[%emt 0:02:01]} Bb7 {[%emt 0:00:03]} 10. Bf4 {[%emt 0:02:09]} Nd5 {[%emt 0:00:09]} 11. Bd2 {[%emt 0:00:00]} Nc6 {[%emt 0:00:11]} 12. e4 {[%emt 0:01:20]} Ndb4 {[%emt 0:00:49]} 13. Na3 {[%emt 0:02:09]} Na5 {[%emt 0:00:22]} 14. Qe2 {[%emt 0:00:07]} Nb3 {[%emt 0:02:27]} 15. Rad1 {[%emt 0:00:02]} a5 {[%emt 0:00:55]} 16. Qe3 {[%emt 0:00:56]} Nxd2 {[%emt 0:00:08]} 17. Rxd2 {[%emt 0:00:02]} Qe8 {[%emt 0:03:15]} 18. Nb5 {[%emt 0:00:25]} Rc8 {[%emt 0:00:04]} 19. Rc1 {[%emt 0:00:25]} c6 {[%emt 0:00:15]} 20. Nc3 {[%emt 0:00:01]} Rd8 {[%emt 0:01:37]} 21. Ne5 {[%emt 0:00:29]} c5 {[%emt 0:00:57]} 22. d5 {[%emt 0:00:30]} exd5 {[%emt 0:00:20]} 23. exd5 {[%emt 0:00:02]} Bf6 {[%emt 0:00:48]} 24. f4 {[%emt 0:00:45]} Qe7 {[%emt 0:00:09]} 25. d6 {[%emt 0:00:17]} Rxd6 {[%emt 0:00:11]} 26. Rxd6 {[%emt 0:00:01]} Bxg2 {[%emt 0:00:06]} 27. Rd7 {[%emt 0:00:19]} Qe6 {[%emt 0:00:04]} 28. Kxg2 {[%emt 0:00:54]} Bxe5 {[%emt 0:00:09]} 29. Rcd1 {[%emt 0:00:02]} Qc6+ {[%emt 0:00:23]} 30. Qf3 {[%emt 0:00:01]} Bd4 {[%emt 0:00:11]} 31. Qxc6 {[%emt 0:00:32]} Nxc6 {[%emt 0:00:01]} 32. Nd5 {[%emt 0:00:00]} Re8 {[%emt 0:00:06]} 33. Rd6 {[%emt 0:00:41]} Nb4 {[%emt 0:00:35]} 34. Nxb6 {[%emt 0:00:08]} Re2+ {[%emt 0:00:10]} 35. Kh3 {[%emt 0:00:01]} h5 {[%emt 0:00:00]} 36. Nc4 {[%emt 0:00:18]} Nc2 {[%emt 0:00:05]} 37. Rd2 {[%emt 0:00:01]} 1-0

[Event "Polish University-ch Teams 2024"]
[Site "Lublin"]
[Date "2024.02.25"]
[Round "8.16"]
[White "Drozdowski, Konrad"]
[Black "Golenia, Wojciech"]
[Result "0-1"]
[ECO "E17"]
[WhiteElo "2117"]
[BlackElo "2212"]
[Annotator "RC"]
[PlyCount "86"]
[EventDate "2024.02.22"]
[EventType "team-tourn"]
[EventCountry "POL"]
[SourceTitle "playchess.com"]
[Source "ChessBase"]
[SourceQuality "1"]
[TimeControl "900+5"]

1. Nf3 {[%emt 0:01:02]} Nf6 {[%emt 0:00:04]} 2. g3 {[%emt 0:00:01]} b6 {[%emt 0:00:09]} 3. Bg2 {[%emt 0:00:13]} Bb7 {[%emt 0:00:07]} 4. b3 {[%emt 0:00:01]} e6 {[%emt 0:00:22]} 5. Bb2 {[%emt 0:00:07]} Be7 {[%emt 0:00:22]} 6. c4 {[%emt 0:00:06]} O-O {[%emt 0:00:18]} 7. O-O {[%emt 0:00:02]} d5 {[%emt 0:00:37]} 8. cxd5 {[%emt 0:00:24]} exd5 {[%emt 0:00:35]} 9. d4 {[%emt 0:00:47]} c5 {[%emt 0:01:03]} 10. dxc5 {[%emt 0:00:31]} bxc5 {[%emt 0:00:04]} 11. e3 {[%emt 0:00:08]} Nbd7 {[%emt 0:01:15]} 12. Nc3 {[%emt 0:00:10]} Qb6 {[%emt 0:01:02]} 13. Na4 {[%emt 0:00:51]} Qe6 {[%emt 0:00:32]} 14. Rc1 {[%emt 0:00:40]} h6 {[%emt 0:01:31]} 15. Re1 {[%emt 0:00:53]} Rfd8 {[%emt 0:00:32]} 16. Qc2 {[%emt 0:00:28]} Rac8 {[%emt 0:00:28]} 17. Nh4 {[%emt 0:01:15]} Ne4 {[%emt 0:01:19]} 18. Nf3 {[%emt 0:00:56]} Ndf6 {[%emt 0:00:48]} 19. Nc3 {[%emt 0:03:06]} d4 {[%emt 0:01:17]} 20. Nxe4 {[%emt 0:00:23]} Bxe4 {[%emt 0:00:41]} 21. Qd2 {[%emt 0:00:49]} d3 {[%emt 0:00:25]} 22. Bxf6 {[%emt 0:00:20]} Bxf6 {[%emt 0:00:13]} 23. Red1 {[%emt 0:00:17]} c4 {[%emt 0:00:36]} 24. bxc4 {[%emt 0:00:23]} Rxc4 {[%emt 0:00:04]} 25. Ne1 {[%emt 0:00:09]} Bg6 {[%emt 0:01:16]} 26. Bf1 {[%emt 0:01:01]} Rxc1 {[%emt 0:01:24]} 27. Rxc1 {[%emt 0:00:08]} Qd5 {[%emt 0:00:05]} 28. Rd1 {[%emt 0:00:14]} Bh5 {[%emt 0:00:02]} 29. Rb1 {[%emt 0:00:25]} Bg6 {[%emt 0:00:02]} 30. Rb3 {[%emt 0:00:08]} a5 {[%emt 0:00:05]} 31. Rb1 {[%emt 0:00:36]} Be7 {[%emt 0:00:07]} 32. Bg2 {[%emt 0:00:44]} Qc4 {[%emt 0:00:12]} 33. Rc1 {[%emt 0:00:02]} Qb4 {[%emt 0:00:03]} 34. Nf3 {[%emt 0:00:11]} Qxd2 {[%emt 0:00:05]} 35. Nxd2 {[%emt 0:00:01]} Bb4 {[%emt 0:00:01]} 36. Rd1 {[%emt 0:00:01]} Bh5 {[%emt 0:00:03]} 37. Bf3 {[%emt 0:00:09]} Bg6 {[%emt 0:00:09]} 38. e4 {[%emt 0:00:12]} f6 {[%emt 0:00:03]} 39. Nc4 {[%emt 0:00:05]} Bf7 {[%emt 0:00:03]} 40. Nb2 {[%emt 0:00:11]} d2 {[%emt 0:00:06]} 41. Be2 {[%emt 0:00:01]} Bxa2 {[%emt 0:00:05]} 42. Bc4+ {[%emt 0:00:01]} Bxc4 {[%emt 0:00:02]} 43. Nxc4 {[%emt 0:00:28]} Rd4 {[%emt 0:00:05]} 0-1

[Event "Polish University-ch Teams 2024"]
[Site "Lublin"]
[Date "2024.02.25"]
[Round "8.17"]
[White "Musial, Tomasz"]
[Black "Sujkowski, Dominik"]
[Result "1-0"]
[ECO "B31"]
[WhiteElo "2171"]
[BlackElo "1562"]
[Annotator "RC"]
[PlyCount "61"]
[EventDate "2024.02.22"]
[EventType "team-tourn"]
[EventCountry "POL"]
[SourceTitle "playchess.com"]
[Source "ChessBase"]
[SourceQuality "1"]
[TimeControl "900+5"]

1. e4 {[%emt 0:00:02]} c5 {[%emt 0:00:58]} 2. Nf3 {[%emt 0:00:03]} Nc6 {[%emt 0:00:04]} 3. Bb5 {[%emt 0:00:02]} g6 {[%emt 0:00:14]} 4. Bxc6 {[%emt 0:00:02]} dxc6 {[%emt 0:00:01]} 5. d3 {[%emt 0:00:02]} Bg7 {[%emt 0:00:19]} 6. h3 {[%emt 0:00:02]} e5 {[%emt 0:00:22]} 7. Be3 {[%emt 0:00:22]} b6 {[%emt 0:00:09]} 8. a4 {[%emt 0:00:02]} a5 {[%emt 0:00:06]} 9. Na3 {[%emt 0:00:03]} Qc7 {[%emt 0:00:36]} 10. O-O {[%emt 0:00:26]} Nf6 {[%emt 0:00:33]} 11. Nd2 {[%emt 0:01:16]} Nh5 {[%emt 0:02:00]} 12. Ndc4 {[%emt 0:01:33]} O-O {[%emt 0:01:04]} 13. Qd2 {[%emt 0:00:05]} Nf4 {[%emt 0:02:57]} 14. Rae1 {[%emt 0:00:06]} Ne6 {[%emt 0:01:43]} 15. Bh6 {[%emt 0:00:56]} Ba6 {[%emt 0:00:27]} 16. Bxg7 {[%emt 0:02:08]} Kxg7 {[%emt 0:04:52]} 17. g3 {[%emt 0:00:03]} Rad8 {[%emt 0:00:00]} 18. f4 {[%emt 0:01:37]} Bxc4 {[%emt 0:00:00]} 19. Nxc4 {[%emt 0:00:02]} f6 {[%emt 0:00:00]} 20. f5 {[%emt 0:01:05]} Ng5 {[%emt 0:00:00]} 21. h4 {[%emt 0:00:13]} Nf7 {[%emt 0:00:00]} 22. Qe2 {[%emt 0:01:49]} Nd6 {[%emt 0:00:00]} 23. Ne3 {[%emt 0:00:08]} c4 {[%emt 0:00:00]} 24. dxc4 {[%emt 0:01:36]} Nxe4 {[%emt 0:00:00]} 25. Qg4 {[%emt 0:00:02]} Nc5 {[%emt 0:00:17]} 26. fxg6 {[%emt 0:00:34]} hxg6 {[%emt 0:00:03]} 27. h5 {[%emt 0:00:04]} Qf7 {[%emt 0:00:23]} 28. Nf5+ {[%emt 0:00:15]} Kh7 {[%emt 0:00:11]} 29. hxg6+ {[%emt 0:00:05]} Qxg6 {[%emt 0:00:03]} 30. Qh4+ {[%emt 0:00:02]} Kg8 {[%emt 0:00:04]} 31. Ne7+ {[%emt 0:00:02]} 1-0

[Event "Polish University-ch Teams 2024"]
[Site "Lublin"]
[Date "2024.02.25"]
[Round "8.18"]
[White "Rykala, Monika"]
[Black "Giefert, Sara"]
[Result "1-0"]
[ECO "A48"]
[WhiteElo "1893"]
[BlackElo "1704"]
[Annotator "NA"]
[PlyCount "159"]
[EventDate "2024.02.22"]
[EventType "team-tourn"]
[EventCountry "POL"]
[SourceTitle "playchess.com"]
[Source "ChessBase"]
[SourceQuality "1"]
[TimeControl "900+5"]

1. d4 {[%emt 0:00:01]} Nf6 {[%emt 0:00:01]} 2. Nf3 {[%emt 0:00:03]} d6 {[%emt 0:00:01]} 3. Bf4 {[%emt 0:00:04]} g6 {[%emt 0:00:04]} 4. e3 {[%emt 0:15:17]} Bg7 {[%emt 0:00:18]} 5. c3 {[%emt 0:00:00]} Nbd7 {[%emt 0:00:23]} 6. h3 {[%emt 0:00:00]} b6 {[%emt 0:00:44]} 7. Be2 {[%emt 0:00:00]} Bb7 {[%emt 0:00:01]} 8. O-O {[%emt 0:00:00]} O-O {[%emt 0:00:10]} 9. Bh2 {[%emt 0:00:00]} c5 {[%emt 0:00:28]} 10. Qb3 {[%emt 0:00:00]} Rc8 {[%emt 0:01:13]} 11. Rd1 {[%emt 0:00:00]} d5 {[%emt 0:03:40]} 12. Nbd2 {[%emt 0:00:00]} Re8 {[%emt 0:00:33]} 13. Ne5 {[%emt 0:00:00]} Nxe5 {[%emt 0:02:03]} 14. Bxe5 {[%emt 0:00:00]} c4 {[%emt 0:00:43]} 15. Qc2 {[%emt 0:00:00]} b5 {[%emt 0:00:22]} 16. Bf3 {[%emt 0:00:00]} a5 {[%emt 0:00:28]} 17. a3 {[%emt 0:00:00]} Qb6 {[%emt 0:00:33]} 18. Re1 {[%emt 0:00:00]} Nd7 {[%emt 0:00:56]} 19. Bxg7 {[%emt 0:00:00]} Kxg7 {[%emt 0:00:02]} 20. e4 {[%emt 0:00:00]} e5 {[%emt 0:00:54]} 21. Bg4 {[%emt 0:00:00]} Rcd8 {[%emt 0:00:51]} 22. Bxd7 {[%emt 0:00:00]} Rxd7 {[%emt 0:00:01]} 23. exd5 {[%emt 0:00:00]} Rxd5 {[%emt 0:00:22]} 24. a4 {[%emt 0:00:00]} Qc6 {[%emt 0:00:41]} 25. f3 {[%emt 0:00:00]} exd4 {[%emt 0:00:13]} 26. axb5 {[%emt 0:00:00]} Rxb5 {[%emt 0:00:46]} 27. cxd4 {[%emt 0:00:00]} Rb4 {[%emt 0:00:25]} 28. Qc3 {[%emt 0:00:00]} Kg8 {[%emt 0:00:17]} 29. Ne4 {[%emt 0:00:00]} Rb6 {[%emt 0:00:11]} 30. d5 {[%emt 0:00:00]} Qd7 {[%emt 0:00:05]} 31. Qd4 {[%emt 0:00:00]} Ra6 {[%emt 0:00:03]} 32. Nf6+ {[%emt 0:00:14]} Rxf6 {[%emt 0:00:01]} 33. Qxf6 {[%emt 0:00:01]} Rf8 {[%emt 0:00:02]} 34. Rxa5 {[%emt 0:00:23]} Qc7 {[%emt 0:00:05]} 35. Raa1 {[%emt 0:00:39]} Qc5+ {[%emt 0:00:02]} 36. Kh2 {[%emt 0:00:03]} Qxd5 {[%emt 0:00:02]} 37. Qe5 {[%emt 0:00:08]} Qc6 {[%emt 0:00:02]} 38. Rac1 {[%emt 0:00:06]} Rc8 {[%emt 0:00:04]} 39. Rc3 {[%emt 0:00:06]} Qb6 {[%emt 0:00:09]} 40. Rce3 {[%emt 0:00:02]} Qc6 {[%emt 0:00:11]} 41. Kh1 {[%emt 0:00:10]} Qb6 {[%emt 0:00:06]} 42. Qc3 {[%emt 0:00:07]} Qc6 {[%emt 0:00:03]} 43. Qd4 {[%emt 0:00:08]} Qb5 {[%emt 0:00:14]} 44. Re5 {[%emt 0:00:12]} Qc6 {[%emt 0:00:02]} 45. Re7 {[%emt 0:00:01]} Ba6 {[%emt 0:00:06]} 46. Qf4 {[%emt 0:00:31]} Qd5 {[%emt 0:00:07]} 47. Qf6 {[%emt 0:00:09]} Bb5 {[%emt 0:00:05]} 48. Qc3 {[%emt 0:00:18]} Rf8 {[%emt 0:00:04]} 49. Qe5 {[%emt 0:00:05]} Qxe5 {[%emt 0:00:04]} 50. R1xe5 {[%emt 0:00:01]} Ba4 {[%emt 0:00:01]} 51. Rc5 {[%emt 0:00:02]} Bb3 {[%emt 0:00:01]} 52. Rcc7 {[%emt 0:00:02]} Kg7 {[%emt 0:00:01]} 53. Kh2 {[%emt 0:00:00]} Kf6 {[%emt 0:00:02]} 54. Kg3 {[%emt 0:00:02]} h6 {[%emt 0:00:07]} 55. h4 {[%emt 0:00:00]} Kg7 {[%emt 0:00:04]} 56. Red7 {[%emt 0:00:02]} Kf6 {[%emt 0:00:02]} 57. Kf2 {[%emt 0:00:04]} Kg7 {[%emt 0:00:02]} 58. g4 {[%emt 0:00:01]} g5 {[%emt 0:00:03]} 59. hxg5 {[%emt 0:00:07]} hxg5 {[%emt 0:00:01]} 60. Rd6 {[%emt 0:00:07]} Re8 {[%emt 0:00:18]} 61. Rd5 {[%emt 0:00:08]} Kg6 {[%emt 0:00:12]} 62. Rc6+ {[%emt 0:00:04]} Re6 {[%emt 0:00:06]} 63. Rxe6+ {[%emt 0:00:05]} fxe6 {[%emt 0:00:02]} 64. Rc5 {[%emt 0:00:00]} Kf6 {[%emt 0:00:02]} 65. Ke3 {[%emt 0:00:01]} Ba2 {[%emt 0:00:07]} 66. f4 {[%emt 0:00:04]} gxf4+ {[%emt 0:00:03]} 67. Kxf4 {[%emt 0:00:01]} Bb3 {[%emt 0:00:03]} 68. Rc6 {[%emt 0:00:03]} Ba2 {[%emt 0:00:15]} 69. g5+ {[%emt 0:00:01]} Kf7 {[%emt 0:00:02]} 70. Rc7+ {[%emt 0:00:26]} Kg6 {[%emt 0:00:05]} 71. Re7 {[%emt 0:00:02]} c3 {[%emt 0:00:11]} 72. bxc3 {[%emt 0:00:01]} Bd5 {[%emt 0:00:01]} 73. Rc7 {[%emt 0:00:01]} Bb3 {[%emt 0:00:07]} 74. c4 {[%emt 0:00:01]} e5+ {[%emt 0:00:05]} 75. Kxe5 {[%emt 0:00:05]} Kxg5 {[%emt 0:00:02]} 76. c5 {[%emt 0:00:02]} Ba4 {[%emt 0:00:03]} 77. Kd6 {[%emt 0:00:01]} Kf5 {[%emt 0:00:01]} 78. Re7 {[%emt 0:00:01]} Kf6 {[%emt 0:00:02]} 79. Re1 {[%emt 0:00:01]} Bb5 {[%emt 0:00:03]} 80. c6 {[%emt 0:00:01]} 1-0

[Event "Polish University-ch Teams 2024"]
[Site "Lublin"]
[Date "2024.02.25"]
[Round "8.19"]
[White "Lukasiewicz, Krzysztof"]
[Black "Mis, Mieszko"]
[Result "1/2-1/2"]
[ECO "A45"]
[WhiteElo "2290"]
[BlackElo "2325"]
[Annotator "ChessBase"]
[PlyCount "22"]
[EventDate "2024.02.22"]
[EventType "team-tourn"]
[EventCountry "POL"]
[SourceTitle "playchess.com"]
[Source "ChessBase"]
[SourceQuality "1"]
[TimeControl "900+5"]

1. d4 {[%emt 0:00:02]} Nf6 {[%emt 0:01:24]} 2. Bf4 {[%emt 0:00:02]} c5 {[%emt 0:00:10]} 3. e3 {[%emt 0:00:02]} g6 {[%emt 0:00:38]} 4. Nc3 {[%emt 0:00:26]} Bg7 {[%emt 0:00:05]} 5. Nf3 {[%emt 0:00:28]} b6 {[%emt 0:00:22]} 6. Be2 {[%emt 0:00:25]} Bb7 {[%emt 0:00:04]} 7. d5 {[%emt 0:00:09]} O-O {[%emt 0:00:29]} 8. e4 {[%emt 0:00:05]} d6 {[%emt 0:00:16]} 9. O-O {[%emt 0:00:14]} Nbd7 {[%emt 0:01:06]} 10. h3 {[%emt 0:00:21]} Ne8 {[%emt 0:00:11]} 11. Bd3 {[%emt 0:02:34]} Nc7 {[%emt 0:00:40]} 1/2-1/2